bitfinex-derivatives/quotes_ETHF0:USTF0_20250102
["timestamp","ask_amount","ask_price","bid_price","bid_amount"]
[1735843357854,40.8,3453.7,3453.6,0.28982]
[1735843358766,40.8,3453.7,3453.6,0.74752]
[1735843361871,40.8,3453.7,3453.6,5.28858244]
[1735843362456,2.27719521,3453.8,3453.7,0.28981]
[1735843362661,1.57559521,3453.8,3453.7,0.28981]
[1735843362863,3.41582378,3454.1,3454.0,0.28979]
[1735843364167,5.99433433,3454.3,3454.1,0.28977]
[1735843364356,5.99433433,3454.3,3453.8,5.72021651]
[1735843364563,5.99433433,3454.3,3454.1,0.28978]
[1735843365066,40.8,3454.2,3454.1,0.28978]
[1735843365656,44.21582378,3454.2,3454.1,0.28978]
[1735843366961,40.8,3454.2,3454.1,0.28978]
[1735843368267,0.2898,3454.0,3453.8,0.2898]
[1735843368468,0.4424,3454.1,3453.7,5.00201651]
[1735843368661,0.73218,3454.1,3454.0,0.28979]
[1735843369067,0.4424,3454.1,3453.7,5.00201651]
[1735843369263,0.28981,3453.8,3453.7,0.4658]
[1735843369475,0.28982,3453.6,3453.5,4.53621651]
[1735843370371,0.28982,3453.6,3453.5,0.28983]
[1735843370669,0.28981,3453.8,3453.4,4.53621651]
[1735843370873,0.28981,3453.8,3453.7,0.28981]
[1735843372673,44.0078,3453.9,3453.8,0.28981]
[1735843373173,40.8,3453.9,3453.8,0.28981]
[1735843375069,40.8,3453.9,3453.8,4.82550905]
[1735843377670,40.8,3453.9,3453.8,0.28981]
[1735843379172,40.8,3453.9,3453.8,7.09335857]
[1735843380477,40.8,3453.9,3453.8,0.28981]
[1735843380879,6.62347584,3454.3,3454.2,0.28977]
[1735843381377,47.42347584,3454.3,3454.2,0.28977]
[1735843381777,44.0078,3454.3,3454.2,0.28977]
[1735843383378,44.29757,3454.3,3454.1,0.71208]
[1735843383577,46.75864055,3454.3,3454.0,4.53817478]
[1735843383793,0.28978,3454.1,3454.0,4.53817478]
[1735843384479,0.28979,3454.0,3453.9,4.53817478]
[1735843384877,40.8,3454.0,3453.9,4.82797478]
[1735843385882,41.08979,3454.0,3453.9,4.82797478]
[1735843386178,41.08979,3454.0,3453.9,0.2898]
[1735843386581,40.8,3454.0,3453.9,0.2898]
[1735843387773,3.41567584,3454.3,3454.2,0.28977]
[1735843388169,44.21567584,3454.3,3454.2,0.28977]
[1735843388376,40.8,3454.3,3454.2,0.28977]
[1735843389384,3.41567584,3454.5,3454.1,2.71254055]
[1735843389685,3.41567584,3454.5,3454.4,2.57850055]
[1735843389981,40.8,3454.8,3454.5,1.01411]
[1735843390182,40.8,3454.8,3454.7,3.49753]
[1735843391784,40.8,3454.8,3454.7,0.28973]
[1735843394788,40.8,3454.8,3454.7,5.78627055]
[1735843394986,40.8,3454.8,3454.7,4.68053]
[1735843397185,40.8,3454.8,3454.7,9.215233]
[1735843397680,4.29317584,3455.8,3455.2,0.72423]
[1735843397885,3.86417584,3455.8,3455.7,0.28965]
[1735843398086,44.66417584,3455.8,3455.6,0.28965]
[1735843398281,44.66417584,3455.8,3455.7,0.28965]
[1735843398479,44.66417584,3455.8,3455.6,0.28965]
[1735843398687,41.2485,3455.8,3455.6,0.28965]
[1735843398893,41.2485,3455.8,3455.7,0.28965]
[1735843399280,41.2485,3455.8,3455.6,0.28965]
[1735843399479,41.53814,3455.8,3455.6,0.28965]
[1735843400091,41.53814,3455.8,3455.5,0.28966]
[1735843400290,41.53814,3455.8,3455.6,0.28965]
[1735843400792,41.2485,3455.8,3455.6,0.28965]
[1735843401091,41.2485,3455.8,3455.7,0.28965]
[1735843404792,41.53814,3455.8,3455.6,0.28965]
[1735843404996,41.2485,3455.8,3455.6,0.28965]
[1735843405194,41.53814,3455.8,3455.6,0.28965]
[1735843405394,41.2485,3455.8,3455.6,0.28965]
[1735843405696,41.2485,3455.8,3455.7,0.28965]
[1735843406889,41.2485,3455.8,3455.3,1.64689]
[1735843407094,41.2485,3455.8,3455.3,0.9227]
[1735843407290,41.2485,3455.8,3455.7,0.28964]
[1735843407786,41.2485,3455.8,3455.3,0.9227]
[1735843408095,41.2485,3455.8,3455.7,0.28964]
[1735843413590,40.8,3455.8,3455.7,0.28964]
[1735843414896,40.8,3455.8,3455.7,0.73654]
[1735843422002,40.8,3455.8,3455.7,3.94434]
[1735843424594,3.2078,3456.9,3455.7,4.8367]
[1735843424803,3.2078,3456.9,3455.6,2.28874055]
[1735843424804,2.28874055,3456.0,3455.4,3.2078]
[1735843425095,40.8,3455.6,3455.4,3.2078]
[1735843425293,40.8,3455.6,3455.4,3.6584]
[1735843425497,0.4392,3456.1,3455.4,3.6584]
[1735843425498,0.4527,3455.8,3455.4,3.6584]
[1735843425702,0.4527,3455.8,3455.7,0.28964]
[1735843425902,41.2527,3455.8,3455.7,0.28964]
[1735843427405,40.8,3455.8,3455.7,0.28964]
[1735843430407,40.8,3455.8,3455.4,3.2078]
[1735843430808,41.08963,3455.8,3455.5,0.28965]
[1735843431008,0.28963,3455.8,3455.5,0.28965]
[1735843431211,0.911,3456.0,3455.5,3.2078]
[1735843431411,40.8,3455.6,3455.5,3.2078]
[1735843431713,40.8,3455.6,3455.5,3.49746]
[1735843432214,0.911,3456.0,3455.9,0.28962]
[1735843432813,41.711,3456.0,3455.9,0.28962]
[1735843434916,41.711,3456.0,3455.9,3.49742]
[1735843438411,0.911,3456.0,3455.9,3.49742]
[1735843440022,1.20062,3456.0,3455.8,4.52317698]
[1735843440220,0.911,3456.0,3455.8,4.52317698]
[1735843440716,0.911,3456.0,3455.9,0.28962]
[1735843442616,0.911,3456.0,3455.9,3.49742]
[1735843447624,3.41567584,3456.4,3456.3,0.28959]
[1735843447829,3.85647584,3456.4,3456.3,3.49739]
[1735843448018,3.85647584,3456.4,3456.0,0.4637]
[1735843448322,41.08959,3456.3,3456.0,0.4637]
[1735843448513,40.8,3456.3,3456.2,0.2896]
[1735843449222,0.2896,3456.2,3456.1,7.22764857]
[1735843449419,0.7414,3456.2,3456.1,6.80354857]
[1735843449720,0.4408,3456.4,3456.3,0.28959]
[1735843449922,40.8,3456.4,3456.3,0.28959]
[1735843450119,41.2466,3456.4,3456.3,0.28959]
[1735843452219,40.8,3456.4,3456.3,2.57833055]
[1735843452519,40.8,3456.4,3456.3,3.75933055]
[1735843453126,40.8,3456.4,3456.3,1.47059]
[1735843453520,40.8,3456.4,3456.3,4.53460499]
[1735843453827,40.8,3456.4,3456.3,4.82419499]
[1735843454321,48.37832055,3456.4,3456.3,4.53460499]
[1735843454625,43.37832055,3456.4,3456.3,4.53460499]
[1735843454821,0.28959,3456.3,3456.2,0.2896]
[1735843455525,41.08959,3456.3,3456.2,0.2896]
[1735843455727,45.8,3456.3,3455.8,4.53460499]
[1735843455930,3.49741,3456.1,3456.0,0.28961]
[1735843456526,0.28963,3455.9,3455.4,7.74240499]
[1735843456826,1.18643,3455.8,3455.7,0.28964]
[1735843457022,0.8968,3455.8,3455.7,0.28964]
[1735843457426,46.76597714,3455.8,3455.7,0.28964]
[1735843458021,47.05560714,3455.8,3455.7,0.28964]
[1735843458327,46.76597714,3455.8,3455.7,0.28964]
[1735843458628,42.13137082,3455.8,3455.7,0.28964]
[1735843459627,45.78896733,3455.8,3455.7,0.28964]
[1735843459829,4.98896733,3455.8,3455.7,0.28964]
[1735843460525,4.98896733,3455.8,3455.7,0.74264]
[1735843461228,40.8,3456.0,3455.9,0.28962]
[1735843461929,40.8,3456.0,3455.7,0.453]
[1735843462127,43.08874055,3456.0,3455.6,9.0713981]
[1735843462425,0.28963,3455.8,3455.7,9.0713981]
[1735843463429,0.28963,3455.8,3455.7,9.3610381]
[1735843463632,0.28963,3455.8,3455.7,0.28964]
[1735843465035,0.28965,3455.6,3455.5,4.83405505]
[1735843465232,0.28965,3455.6,3455.5,4.54440505]
[1735843465431,0.28965,3455.6,3455.5,4.83406505]
[1735843465631,0.71115,3455.6,3455.5,4.83406505]
[1735843465832,0.71115,3455.6,3455.5,4.54440505]
[1735843466231,0.4215,3455.6,3455.5,4.83406505]
[1735843467530,0.71115,3455.6,3455.5,4.83406505]
[1735843467728,0.71115,3455.6,3455.4,4.54440505]
[1735843468034,0.4215,3455.6,3455.5,0.28966]
[1735843468432,0.71115,3455.6,3455.5,0.28966]
[1735843469137,0.4215,3455.6,3455.5,0.28966]
[1735843469633,3.41546034,3455.9,3455.4,4.54440505]
[1735843469836,3.41546034,3455.9,3455.8,0.28963]
[1735843469837,3.70508034,3455.9,3455.8,0.28963]
[1735843470830,3.41546034,3455.9,3455.8,0.28963]
[1735843471036,40.8,3456.0,3455.7,0.4606]
[1735843471237,41.08962,3456.0,3455.9,0.28962]
[1735843472234,40.8,3456.0,3455.9,0.28962]
[1735843487253,40.8,3456.0,3455.9,7.10622757]
[1735843488653,40.8,3456.0,3455.9,0.28962]
[1735843491453,40.8,3456.0,3455.8,10.02440757]
[1735843491454,41.08962,3456.0,3455.8,10.31403757]
[1735843492349,40.8,3456.0,3455.8,10.31403757]
[1735843492551,0.28962,3455.9,3455.8,10.02440757]
[1735843492754,0.28962,3455.9,3455.8,3.49743]
[1735843492755,1.14182,3455.9,3455.8,3.49743]
[1735843493151,0.8522,3455.9,3455.7,4.54023724]
[1735843493454,1.14183,3455.9,3455.7,4.82987724]
[1735843493752,1.14183,3455.9,3455.8,0.28963]
[1735843493955,0.4245,3455.9,3455.8,0.73513]
[1735843494156,40.8,3456.0,3455.9,0.28962]
[1735843494344,2.27537881,3456.1,3455.9,0.4284]
[1735843494550,2.27537881,3456.1,3456.0,0.28961]
[1735843495554,41.51409,3456.3,3456.2,0.2896]
[1735843495954,41.2245,3456.3,3456.2,0.2896]
[1735843496256,41.51409,3456.3,3456.2,0.2896]
[1735843496853,41.51409,3456.3,3456.2,4.82983724]
[1735843497153,41.2245,3456.3,3456.2,4.82983724]
[1735843497355,41.51409,3456.3,3456.2,4.82983724]
[1735843497851,43.78946881,3456.3,3456.2,0.2896]
[1735843498051,43.49987881,3456.3,3456.2,0.2896]
[1735843498357,43.78946881,3456.3,3456.2,0.2896]
[1735843498656,43.49987881,3456.3,3456.2,0.2896]
[1735843499054,2.27537881,3456.3,3456.2,0.2896]
[1735843500257,40.8,3456.5,3456.1,6.81660757]
[1735843500453,41.08957,3456.5,3456.3,0.28959]
[1735843500954,5.69374779,3457.1,3456.5,0.28957]
[1735843501158,5.69374779,3457.1,3457.0,3.49733]
[1735843501358,3.63996318,3457.1,3457.0,4.67733]
[1735843501660,3.63996318,3457.1,3457.0,5.09913]
[1735843502157,40.8,3457.8,3457.7,0.28947]
[1735843502562,40.8,3457.8,3457.3,2.71454055]
[1735843502749,40.8,3457.8,3457.7,3.49727]
[1735843502951,40.8,3457.8,3457.7,4.67727]
[1735843503155,10.03915169,3458.6,3458.4,0.28941]
[1735843503457,3.2078,3458.6,3458.1,3.2078]
[1735843503761,0.28943,3458.3,3458.1,3.2078]
[1735843503958,40.8,3458.4,3458.1,3.2078]
[1735843504158,0.4533,3458.2,3458.1,3.49724]
[1735843504361,40.8,3458.4,3458.1,3.2078]
[1735843504565,40.8,3458.4,3458.3,0.28942]
[1735843505857,40.8,3458.4,3458.1,3.2078]
[1735843506054,0.28943,3458.2,3458.1,3.2078]
[1735843506453,2.28874055,3458.4,3458.0,4.52765682]
[1735843506658,41.08944,3458.1,3458.0,4.52765682]
[1735843507161,43.37818055,3458.1,3458.0,4.52765682]
[1735843507359,51.58598055,3458.1,3458.0,0.70685682]
[1735843507556,0.28946,3457.9,3457.8,6.81660757]
[1735843507761,51.29654055,3458.1,3457.3,3.4973]
[1735843507762,10.49654055,3458.1,3457.3,3.4973]
[1735843507956,0.2895,3457.5,3457.4,0.2895]
[1735843508156,0.28951,3457.3,3457.2,6.81660757]
[1735843508858,2.28874055,3457.5,3457.2,6.81660757]
[1735843509153,40.8,3457.3,3457.2,10.31392757]
[1735843509360,40.8,3457.3,3457.2,3.49732]
[1735843510961,40.8,3457.3,3457.2,4.67632]
[1735843511152,40.8,3457.3,3457.2,5.11312]
[1735843512366,3.2078,3458.0,3457.8,0.28946]
[1735843512660,3.2078,3458.0,3457.9,0.8895]
[1735843512856,40.8,3458.0,3457.9,1.17896]
[1735843513063,40.8,3458.0,3457.9,0.8895]
[1735843514959,40.8,3458.0,3457.9,1.17896]
[1735843515962,3.2078,3458.9,3457.9,7.35796]
[1735843516264,0.28935,3459.2,3458.9,0.28937]
[1735843516460,41.08936,3459.1,3459.0,0.4449]
[1735843516660,40.8,3459.1,3459.0,0.4449]
[1735843516854,40.8,3459.1,3459.0,0.73426]
[1735843522469,43.37810055,3459.1,3459.0,0.4449]
[1735843522667,0.28927,3460.2,3459.7,0.2893]
[1735843522867,3.2078,3460.3,3459.8,0.4361]
[1735843523271,40.8,3460.1,3459.8,0.4361]
[1735843523566,41.08927,3460.1,3459.9,0.73459]
[1735843523961,40.8,3460.1,3459.9,0.4453]
[1735843524358,41.08928,3460.1,3459.9,0.73458]
[1735843524558,0.28928,3460.0,3459.9,0.73458]
[1735843524764,0.28929,3459.9,3459.8,0.4361]
[1735843525158,5.49654055,3460.8,3459.8,3.6439]
[1735843525365,0.28926,3460.3,3460.1,0.28927]
[1735843525574,40.8,3460.7,3460.3,0.28925]
[1735843525763,0.28925,3460.4,3460.0,2.28874055]
[1735843526173,0.28925,3460.4,3460.3,0.28926]
[1735843526575,0.28926,3460.3,3460.2,0.28926]
[1735843526762,40.8,3460.7,3460.6,0.28923]
[1735843527065,40.8,3460.7,3460.6,5.78577055]
[1735843527674,41.08922,3460.7,3460.6,3.2078]
[1735843527869,41.08922,3460.7,3460.2,3.2078]
[1735843527870,40.8,3460.7,3460.2,3.2078]
[1735843528069,0.28925,3460.4,3460.2,3.49706]
[1735843528473,40.8,3460.7,3460.2,3.49706]
[1735843528774,0.28924,3460.5,3460.3,0.28925]
[1735843528975,0.28923,3460.6,3460.3,0.28925]
[1735843529173,0.28923,3460.6,3460.3,0.28926]
[1735843529367,41.08923,3460.7,3460.4,0.28924]
[1735843529567,41.08923,3460.7,3460.5,0.28924]
[1735843529976,41.08923,3460.7,3460.3,2.28874055]
[1735843529977,0.28923,3460.6,3460.4,0.28925]
[1735843530669,40.8,3460.7,3460.3,2.28874055]
[1735843530869,3.93075,3461.3,3461.0,0.28919]
[1735843530870,0.28918,3461.2,3461.0,0.28919]
[1735843531069,0.72289,3461.6,3460.6,2.28874055]
[1735843531070,3.2078,3461.8,3460.9,2.28874055]
[1735843531369,3.2078,3461.8,3461.0,3.6504]
[1735843531574,0.28915,3461.6,3461.5,0.28915]
[1735843531872,0.28917,3461.4,3461.3,0.28917]
[1735843532473,40.8,3461.6,3461.0,3.6504]
[1735843532671,0.28919,3461.2,3461.1,0.28918]
[1735843533075,3.2078,3461.4,3460.9,0.2892]
[1735843533374,0.28922,3460.7,3460.6,3.2078]
[1735843533572,2.28874055,3461.0,3460.1,3.2078]
[1735843533871,0.28926,3460.3,3460.2,0.28926]
[1735843534070,41.08926,3460.3,3460.2,0.28926]
[1735843534465,40.8,3460.3,3460.1,3.2078]
[1735843534667,0.28927,3460.1,3460.0,0.4633]
[1735843535168,0.28927,3460.1,3460.0,0.75258]
[1735843535369,0.28927,3460.2,3460.1,0.28927]
[1735843535569,40.8,3460.3,3460.2,0.28926]
[1735843536775,0.2892,3461.1,3460.2,0.72317]
[1735843536977,0.28918,3461.2,3461.1,0.28919]
[1735843537272,3.2078,3461.8,3461.4,0.28916]
[1735843537273,0.28916,3461.5,3461.4,0.28916]
[1735843537475,3.2078,3461.8,3461.3,2.28874055]
[1735843537671,3.49693,3461.8,3461.7,0.28914]
[1735843538078,3.49693,3461.8,3461.7,0.72524]
[1735843538383,40.8,3461.8,3461.7,0.72524]
[1735843538772,3.2078,3462.5,3462.4,0.28908]
[1735843538975,3.2078,3462.5,3462.4,2.57782055]
[1735843539279,0.28905,3462.8,3462.6,0.28906]
[1735843539478,0.28905,3462.8,3462.7,0.28906]
[1735843539680,3.49684,3462.9,3462.8,0.28905]
[1735843539979,3.49684,3462.9,3462.5,0.4361]
[1735843539980,44.0078,3462.9,3462.5,0.4361]
[1735843540171,44.29684,3462.9,3462.8,0.28905]
[1735843540778,44.0078,3462.9,3462.8,0.28905]
[1735843541077,44.0078,3462.9,3462.8,2.57779055]
[1735843541078,40.8,3462.9,3462.8,2.57779055]
[1735843541265,40.8,3462.9,3462.8,6.97559055]
[1735843542176,3.2078,3464.1,3462.9,0.7226]
[1735843542375,3.2078,3464.1,3463.9,0.28895]
[1735843542572,3.2078,3464.1,3463.8,2.57770055]
[1735843542773,3.49674,3464.1,3463.8,2.57770055]
[1735843542972,3.2078,3464.1,3463.6,3.6458]
[1735843543473,0.5959218,3464.8,3463.8,2.28874055]
[1735843543474,3.2078,3464.5,3463.8,2.28874055]
[1735843543673,0.5959218,3464.8,3464.2,2.28874055]
[1735843543881,3.2078,3465.1,3464.5,2.28874055]
[1735843544088,3.2078,3465.1,3464.4,0.28891]
[1735843544272,0.28887,3464.9,3464.6,0.28889]
[1735843544774,0.28891,3464.5,3464.1,0.28893]
[1735843544973,0.28891,3464.5,3464.2,0.28893]
[1735843545174,40.8,3464.4,3464.3,2.72239595]
[1735843545378,40.8,3464.4,3464.3,6.21911595]
[1735843545680,40.8,3464.4,3464.3,5.93019595]
[1735843546388,40.8,3464.4,3464.3,3.2078]
[1735843546981,40.8,3464.4,3464.3,6.21911595]
[1735843547282,40.8,3464.4,3464.3,5.93019595]
[1735843547486,40.8,3464.4,3464.3,3.2078]
[1735843547685,41.08891,3464.4,3464.3,3.2078]
[1735843547885,0.28893,3464.2,3463.7,3.2078]
[1735843548084,40.8,3464.4,3463.7,3.49677]
[1735843548389,0.28894,3464.1,3463.7,3.49677]
[1735843548685,41.08892,3464.4,3464.0,0.28895]
[1735843548885,40.8,3464.4,3464.1,3.2078]
[1735843549085,40.8,3464.4,3464.1,3.49674]
[1735843549282,40.8,3464.4,3464.1,3.2078]
[1735843549683,40.8,3464.4,3463.7,3.2078]
[1735843549885,0.28894,3464.1,3463.7,3.49677]
[1735843550688,40.8,3464.0,3463.7,3.2078]
[1735843550998,40.8,3464.0,3463.9,0.28896]
[1735843551290,40.8,3464.0,3463.9,3.01135595]
[1735843552287,40.8,3464.0,3463.9,0.28896]
[1735843553091,0.28896,3463.8,3463.7,3.2078]
[1735843553887,0.28901,3463.2,3462.9,3.49683]
[1735843554086,5.93019595,3463.9,3462.9,3.2078]
[1735843554285,0.289,3463.4,3463.1,0.28902]
[1735843554494,40.8,3463.2,3463.0,0.28903]
[1735843554694,40.8,3463.2,3462.9,3.2078]
[1735843555190,40.8,3463.2,3463.1,0.28902]
[1735843556191,0.29316536,3464.0,3463.0,0.28903]
[1735843556192,0.28896,3463.9,3463.0,0.28903]
[1735843556392,0.28896,3463.9,3463.5,0.28898]
[1735843556591,0.28896,3463.9,3463.6,0.4373]
[1735843556997,0.28897,3463.8,3463.6,0.4373]
[1735843557299,0.289,3463.4,3463.3,3.2078]
[1735843557696,0.28903,3463.0,3462.9,3.2078]
[1735843558895,41.08903,3463.0,3462.9,3.2078]
[1735843559203,40.8,3463.0,3462.9,3.49684]
[1735843560296,0.00420536,3464.0,3463.0,0.72256]
[1735843560496,0.00420536,3464.0,3462.9,5.93019595]
[1735843560497,0.00420536,3464.0,3463.9,0.28896]
[1735843560995,40.8,3464.7,3463.9,0.28896]
[1735843561196,40.8,3464.7,3464.6,0.2889]
[1735843561400,3.2078,3465.2,3464.5,3.44466595]
[1735843561601,3.49662,3465.6,3465.4,0.28883]
[1735843561799,2.49662,3465.6,3465.2,0.28885]
[1735843562003,2.49662,3465.6,3465.5,0.28882]
[1735843562203,0.91194113,3466.4,3465.5,3.2078]
[1735843562401,0.91194113,3466.4,3465.6,0.4453]
[1735843562597,0.28877,3466.2,3466.1,0.28877]
[1735843562804,0.91194113,3466.4,3465.9,3.2078]
[1735843563006,1.20069113,3466.4,3466.2,0.28876]
[1735843563204,0.91194113,3466.4,3465.9,3.2078]
[1735843563405,0.91194113,3466.4,3466.1,0.28877]
[1735843563709,0.28877,3466.2,3466.0,0.28877]
[1735843563909,0.91194113,3466.4,3465.9,3.2078]
[1735843564109,1.20069113,3466.4,3466.2,0.28876]
[1735843564307,1.20069113,3466.4,3466.1,0.28877]
[1735843564609,0.91194113,3466.4,3465.9,3.2078]
[1735843564808,0.28876,3466.3,3466.0,0.28877]
[1735843565010,0.91194113,3466.4,3465.9,3.2078]
[1735843565411,5.91194113,3466.4,3465.6,1.215]
[1735843565706,3.2078,3466.2,3465.6,1.215]
[1735843566013,0.2889,3464.6,3464.5,3.2078]
[1735843566302,3.2078,3465.3,3464.5,3.4967]
[1735843566509,0.2889,3464.7,3464.5,3.2078]
[1735843566714,0.2889,3464.6,3464.5,3.2078]
[1735843566909,41.0889,3464.6,3464.5,3.2078]
[1735843567210,40.8,3464.6,3464.5,3.49671]
[1735843568506,40.8,3464.6,3464.5,3.2078]
[1735843568704,41.0889,3464.6,3464.5,3.2078]
[1735843568914,0.28895,3464.0,3463.9,3.2078]
[1735843569112,40.8,3464.6,3463.9,3.2078]
[1735843569806,0.28895,3464.0,3463.9,3.2078]
[1735843571105,40.8,3464.6,3463.9,3.2078]
[1735843571411,0.28894,3464.2,3463.9,3.2078]
[1735843571612,0.28894,3464.2,3464.0,0.28894]
[1735843572009,40.8,3464.6,3463.9,3.2078]
[1735843572010,0.28895,3464.0,3463.9,3.2078]
[1735843574610,0.289,3463.4,3463.3,3.2078]
[1735843575312,41.089,3463.4,3463.3,3.2078]
[1735843576817,2.72239595,3464.0,3463.8,0.28896]
[1735843576818,0.28895,3464.0,3463.8,0.28896]
[1735843577216,41.08896,3463.9,3463.7,3.49677]
[1735843577415,41.08896,3463.9,3463.7,0.28897]
[1735843577716,41.08896,3463.9,3463.6,0.28898]
[1735843577717,0.28898,3463.7,3463.6,0.28898]
[1735843577918,0.28898,3463.7,3463.4,0.4485]
[1735843577919,0.28899,3463.5,3463.4,0.4485]
[1735843578114,40.8,3463.9,3463.4,0.4485]
[1735843578522,41.08896,3463.9,3463.8,0.28896]
[1735843578714,0.28898,3463.7,3463.6,0.28898]
[1735843579022,0.28897,3463.8,3463.4,0.4485]
[1735843579318,40.8,3463.9,3463.6,0.28897]
[1735843579521,0.28897,3463.7,3463.6,0.28897]
[1735843579718,40.8,3463.9,3463.4,0.4485]
[1735843579910,0.28899,3463.5,3463.4,0.4485]
[1735843580511,0.28899,3463.5,3463.4,0.7375]
[1735843581013,40.8,3463.9,3463.4,0.4485]
[1735843581214,0.28899,3463.6,3463.5,0.28899]
[1735843581823,0.28896,3463.8,3463.7,0.28897]
[1735843582018,0.28898,3463.7,3463.6,0.28898]
[1735843582218,40.8,3463.9,3463.4,0.4485]
[1735843582219,41.08896,3463.9,3463.8,0.28896]
[1735843582617,0.28897,3463.8,3463.7,0.28897]
[1735843584026,41.08896,3463.9,3463.8,0.28896]
[1735843584925,40.8,3463.9,3463.4,0.4485]
[1735843585222,0.28896,3463.8,3463.7,0.28896]
[1735843585627,41.08896,3463.9,3463.8,0.28896]
[1735843586221,40.8,3463.9,3463.8,3.49676]
[1735843586524,0.28891,3464.6,3464.5,0.28889]
[1735843586723,3.2078,3464.7,3464.4,0.28891]
[1735843586724,0.28891,3464.5,3464.4,0.28891]
[1735843587026,41.08891,3464.5,3464.4,0.28891]
[1735843588519,41.08891,3464.5,3464.1,0.4262]
[1735843588520,40.8,3464.5,3463.8,3.49676]
[1735843588713,0.28895,3464.0,3463.9,0.28894]
[1735843589127,0.72232,3464.3,3463.8,3.2078]
[1735843589326,41.08895,3463.9,3463.8,3.49676]
[1735843590023,41.08895,3463.9,3463.8,3.2078]
[1735843592415,0.28892,3464.4,3464.3,0.28891]
[1735843592619,0.28892,3464.3,3464.2,3.49673]
[1735843593026,40.8,3464.3,3464.2,3.49673]
[1735843593227,41.08892,3464.3,3464.2,3.49673]
[1735843593423,40.8,3464.3,3464.2,3.49673]
[1735843593622,3.35372686,3464.7,3464.6,0.2889]
[1735843593828,3.35372686,3464.7,3464.6,3.4967]
[1735843594126,40.8,3464.8,3464.7,0.28889]
[1735843594328,40.8,3464.8,3464.7,0.74109]
[1735843595230,3.35372686,3465.6,3464.7,0.4522]
[1735843595529,3.35372686,3465.6,3465.5,3.49662]
[1735843595830,40.8,3465.6,3465.5,3.49662]
[1735843598231,40.8,3465.6,3465.5,6.21901595]
[1735843599326,41.08881,3465.6,3465.5,3.2078]
[1735843600625,40.8,3465.6,3465.0,3.2078]
[1735843600825,0.28885,3465.1,3465.0,3.2078]
[1735843601229,41.08885,3465.1,3465.0,3.2078]
[1735843601425,0.28887,3464.9,3464.8,6.81660757]
[1735843601728,8.49667,3464.9,3464.8,5.10060757]
[1735843602128,0.28893,3464.2,3464.1,3.2078]
[1735843602432,0.28893,3464.2,3464.1,3.49674]
[1735843602636,0.28893,3464.2,3464.1,3.2078]
[1735843603225,0.28893,3464.3,3464.1,3.49673]
[1735843603529,44.0078,3464.9,3464.1,3.2078]
[1735843603729,0.72221,3464.8,3464.1,3.49673]
[1735843603930,44.0078,3464.9,3464.1,3.2078]
[1735843604126,0.72223,3464.7,3464.1,3.2078]
[1735843604325,0.72222,3464.8,3464.1,3.2078]
[1735843604527,0.28893,3464.2,3464.1,3.2078]
[1735843605532,0.28896,3463.8,3463.7,3.2078]
[1735843606128,0.28897,3463.8,3463.4,0.8986]
[1735843606333,0.28897,3463.8,3463.6,0.72467]
[1735843606534,41.08897,3463.7,3463.6,0.4357]
[1735843607234,0.28899,3463.5,3463.4,0.4633]
[1735843609230,40.8,3463.7,3463.4,0.4633]
[1735843609634,0.28899,3463.5,3463.4,0.4633]
[1735843611428,0.28898,3463.6,3463.4,0.7523]
[1735843611826,40.8,3463.7,3463.4,0.7523]
[1735843612037,3.2078,3464.5,3463.5,2.72239595]
[1735843612334,0.28893,3464.3,3464.2,3.2078]
[1735843612536,41.08893,3464.3,3464.2,3.2078]
[1735843612929,41.08893,3464.3,3464.2,3.49673]
[1735843613837,41.08893,3464.3,3464.2,3.2078]
[1735843614832,41.08893,3464.3,3464.2,3.49673]
[1735843616433,40.8,3464.3,3464.2,3.49673]
[1735843617333,41.08892,3464.3,3464.2,3.2078]
[1735843618136,0.28899,3463.5,3463.4,9.5346981]
[1735843618442,0.28898,3463.7,3463.5,0.28898]
[1735843618641,2.72239595,3464.2,3463.4,0.4633]
[1735843618936,0.28899,3463.5,3463.4,0.4633]
[1735843619245,0.28899,3463.5,3463.4,0.7523]
[1735843619842,40.8,3463.6,3463.3,3.2078]
[1735843620142,0.289,3463.4,3463.3,3.2078]
[1735843622139,41.08898,3463.6,3463.3,3.2078]
[1735843622342,0.28899,3463.5,3463.3,3.4968]
[1735843622737,0.289,3463.4,3463.3,3.2078]
[1735843624234,40.8,3463.6,3463.3,3.2078]
[1735843624445,0.28899,3463.5,3463.4,0.289]
[1735843624743,0.289,3463.4,3463.3,3.4968]
[1735843625138,40.8,3463.6,3463.3,3.2078]
[1735843625432,40.8,3463.6,3463.4,0.28899]
[1735843625631,0.28899,3463.5,3463.4,0.28899]
[1735843625836,41.08898,3463.6,3463.5,0.28899]
[1735843626637,40.8,3463.6,3463.5,0.28899]
[1735843627234,41.08898,3463.6,3463.5,0.28899]
[1735843627637,0.289,3463.5,3463.4,0.28899]
[1735843627839,0.289,3463.4,3463.3,3.2078]
[1735843628349,0.289,3463.4,3463.3,3.49681]
[1735843629645,0.289,3463.4,3463.3,0.28901]
[1735843629941,40.8,3463.6,3463.1,3.2078]
[1735843630139,0.72248,3463.5,3463.0,0.28903]
[1735843630335,0.28902,3463.1,3463.0,0.28903]
[1735843631044,40.8,3463.6,3462.8,1.2988]
[1735843631241,0.28904,3462.9,3462.8,1.58784]
[1735843631640,0.7225,3463.4,3462.8,1.2988]
[1735843631949,0.28903,3463.1,3463.0,0.28903]